[Event "Titled Tuesday Blitz August 22 Late 2023"]
[White "Ballester Llagaria, Luis Eduardo"]
[Black "Castillo Pena, Patricia Evarista"]
[WhiteFideId "2297620"]
[BlackFideId "6412106"]
[WhiteElo "2528"]
[BlackElo "1942"]
[Result "1-0"]
[Round "1"]
[TimeControl "180+1"]
[Date "2023.08.22"]
[WhiteClock "0:01:42"]
[BlackClock "0:00:09"]
[Board "218"]

1. e4 {[%clk 0:02:59]}  c5 {[%clk 0:03:00]} 2. Nc3 {[%clk 0:02:58]}  Nc6 {[%clk 0:02:58]} 3. Bb5 {[%clk 0:02:58]}  Nd4 {[%clk 0:02:57]} 4. Nf3 {[%clk 0:02:59]}  a6 {[%clk 0:02:56]} 5. Bd3 {[%clk 0:02:58]}  g6 {[%clk 0:02:52]} 6. O-O {[%clk 0:02:56]}  Bg7 {[%clk 0:02:52]} 7. Re1 {[%clk 0:02:46]}  d6 {[%clk 0:02:51]} 8. Nxd4 {[%clk 0:02:42]}  cxd4 {[%clk 0:02:51]} 9. Ne2 {[%clk 0:02:43]}  e5 {[%clk 0:02:50]} 10. c3 {[%clk 0:02:43]}  dxc3 {[%clk 0:02:48]} 11. dxc3 {[%clk 0:02:40]}  Ne7 {[%clk 0:02:48]} 12. Be3 {[%clk 0:02:32]}  O-O {[%clk 0:02:46]} 13. c4 {[%clk 0:02:32]}  Bg4 {[%clk 0:02:40]} 14. f3 {[%clk 0:02:28]}  Be6 {[%clk 0:02:37]} 15. Nc3 {[%clk 0:02:27]}  Rc8 {[%clk 0:02:36]} 16. b3 {[%clk 0:02:25]}  Qa5 {[%clk 0:02:33]} 17. Qd2 {[%clk 0:02:21]}  Rfe8 {[%clk 0:02:22]} 18. Rac1 {[%clk 0:02:16]}  b5 {[%clk 0:01:54]} 19. cxb5 {[%clk 0:02:13]}  axb5 {[%clk 0:01:42]} 20. Nxb5 {[%clk 0:02:14]}  Qxd2 {[%clk 0:01:43]} 21. Bxd2 {[%clk 0:02:15]}  d5 {[%clk 0:01:38]} 22. Nc7 {[%clk 0:02:07]}  Red8 {[%clk 0:00:32]} 23. Bg5 {[%clk 0:02:05]}  Rd7 {[%clk 0:00:22]} 24. Bxe7 {[%clk 0:01:54]}  Rdxc7 {[%clk 0:00:21]} 25. Rxc7 {[%clk 0:01:48]}  Rxc7 {[%clk 0:00:22]} 26. exd5 {[%clk 0:01:47]}  Rxe7 {[%clk 0:00:16]} 27. dxe6 {[%clk 0:01:47]}  Rxe6 {[%clk 0:00:16]} 28. a4 {[%clk 0:01:43]}  Rb6 {[%clk 0:00:16]} 29. Bc4 {[%clk 0:01:41]}  Kf8 {[%clk 0:00:16]} 30. a5 {[%clk 0:01:42]}  Rb7 {[%clk 0:00:16]} 31. a6 {[%clk 0:01:42]}  Ra7 {[%clk 0:00:12]} 32. b4 {[%clk 0:01:42]}  f5 {[%clk 0:00:11]} 33. b5 {[%clk 0:01:42]}  Ke7 {[%clk 0:00:10]} 34. b6 {[%clk 0:01:42]}  Ra8 {[%clk 0:00:09]} 35. b7 {[%clk 0:01:42]} 1-0


[Site "https://www.chess.com"]

[Event "Titled Tuesday Blitz August 22 Late 2023"]
[White "Nakamura, Hikaru"]
[Black "Shuvalova, Polina"]
[WhiteFideId "2016192"]
[BlackFideId "24171760"]
[WhiteElo "3222"]
[BlackElo "2652"]
[Result "1-0"]
[Round "2"]
[TimeControl "180+1"]
[Date "2023.08.22"]
[WhiteClock "0:02:04"]
[BlackClock "0:00:31"]
[Board "1"]

1. Nf3 {[%clk 0:03:00]}  d5 {[%clk 0:02:59]} 2. b3 {[%clk 0:03:00]}  Nf6 {[%clk 0:02:58]} 3. e3 {[%clk 0:02:59]}  c5 {[%clk 0:02:57]} 4. Bb2 {[%clk 0:02:59]}  Nc6 {[%clk 0:02:57]} 5. Bb5 {[%clk 0:02:59]}  Bd7 {[%clk 0:02:57]} 6. O-O {[%clk 0:02:58]}  g6 {[%clk 0:02:55]} 7. Bxf6 {[%clk 0:02:54]}  exf6 {[%clk 0:02:56]} 8. d4 {[%clk 0:02:55]}  a6 {[%clk 0:02:54]} 9. Bxc6 {[%clk 0:02:54]}  bxc6 {[%clk 0:02:53]} 10. Nc3 {[%clk 0:02:53]}  f5 {[%clk 0:02:41]} 11. Na4 {[%clk 0:02:53]}  cxd4 {[%clk 0:02:15]} 12. exd4 {[%clk 0:02:51]}  Be7 {[%clk 0:02:13]} 13. Ne5 {[%clk 0:02:49]}  Ra7 {[%clk 0:02:05]} 14. Nc5 {[%clk 0:02:43]}  Bxc5 {[%clk 0:02:00]} 15. dxc5 {[%clk 0:02:44]}  O-O {[%clk 0:02:00]} 16. Qd4 {[%clk 0:02:41]}  a5 {[%clk 0:01:58]} 17. Rfe1 {[%clk 0:02:36]}  a4 {[%clk 0:01:56]} 18. b4 {[%clk 0:02:36]}  Rb7 {[%clk 0:01:55]} 19. a3 {[%clk 0:02:35]}  Qc7 {[%clk 0:01:46]} 20. Re3 {[%clk 0:02:34]}  Rbb8 {[%clk 0:01:39]} 21. h4 {[%clk 0:02:33]}  h5 {[%clk 0:01:36]} 22. c4 {[%clk 0:02:30]}  Rbd8 {[%clk 0:01:16]} 23. cxd5 {[%clk 0:02:30]}  cxd5 {[%clk 0:01:16]} 24. Rae1 {[%clk 0:02:29]}  f4 {[%clk 0:01:02]} 25. Qxf4 {[%clk 0:02:24]}  Bf5 {[%clk 0:01:01]} 26. Nxg6 {[%clk 0:02:21]}  Qxf4 {[%clk 0:01:00]} 27. Nxf4 {[%clk 0:02:22]}  d4 {[%clk 0:01:00]} 28. Rg3+ {[%clk 0:02:22]}  Kh7 {[%clk 0:01:00]} 29. Rg5 {[%clk 0:02:20]}  Bg6 {[%clk 0:00:58]} 30. Nxg6 {[%clk 0:02:10]}  fxg6 {[%clk 0:00:59]} 31. c6 {[%clk 0:02:11]}  d3 {[%clk 0:00:57]} 32. c7 {[%clk 0:02:10]}  Rd7 {[%clk 0:00:57]} 33. Rc5 {[%clk 0:02:09]}  Rc8 {[%clk 0:00:56]} 34. Rd1 {[%clk 0:02:09]}  Rdxc7 {[%clk 0:00:50]} 35. Rxc7+ {[%clk 0:02:09]}  Rxc7 {[%clk 0:00:51]} 36. Rxd3 {[%clk 0:02:09]}  Rc1+ {[%clk 0:00:49]} 37. Kh2 {[%clk 0:02:10]}  Rb1 {[%clk 0:00:47]} 38. Rd7+ {[%clk 0:02:03]}  Kh6 {[%clk 0:00:31]} 39. Ra7 {[%clk 0:02:04]} 1-0


[Site "https://www.chess.com"]

[Event "Titled Tuesday Blitz August 22 Late 2023"]
[White "Ehlvest, Jaan"]
[Black "Naroditsky, Daniel"]
[WhiteFideId "4500016"]
[BlackFideId "2026961"]
[WhiteElo "2651"]
[BlackElo "3171"]
[Result "0-1"]
[Round "2"]
[TimeControl "180+1"]
[Date "2023.08.22"]
[WhiteClock "0:00:00"]
[BlackClock "0:00:21"]
[Board "2"]

1. e4 {[%clk 0:02:56]}  Nf6 {[%clk 0:02:58]} 2. e5 {[%clk 0:02:55]}  Nd5 {[%clk 0:02:58]} 3. d4 {[%clk 0:02:54]}  d6 {[%clk 0:02:59]} 4. c4 {[%clk 0:02:54]}  Nb6 {[%clk 0:03:00]} 5. exd6 {[%clk 0:02:53]}  exd6 {[%clk 0:03:00]} 6. Nc3 {[%clk 0:02:52]}  Be7 {[%clk 0:03:01]} 7. Bd3 {[%clk 0:02:50]}  O-O {[%clk 0:03:01]} 8. h3 {[%clk 0:02:49]}  Bf6 {[%clk 0:02:56]} 9. Nge2 {[%clk 0:02:46]}  Nc6 {[%clk 0:02:52]} 10. O-O {[%clk 0:02:23]}  Re8 {[%clk 0:02:48]} 11. a3 {[%clk 0:02:17]}  Bg5 {[%clk 0:02:30]} 12. f4 {[%clk 0:01:39]}  Bf6 {[%clk 0:02:22]} 13. d5 {[%clk 0:01:39]}  Ne7 {[%clk 0:02:17]} 14. Qc2 {[%clk 0:01:33]}  Ng6 {[%clk 0:02:15]} 15. Ne4 {[%clk 0:01:22]}  c6 {[%clk 0:02:16]} 16. dxc6 {[%clk 0:01:17]}  bxc6 {[%clk 0:02:17]} 17. Bd2 {[%clk 0:01:14]}  Bf5 {[%clk 0:01:51]} 18. N2g3 {[%clk 0:01:05]}  Bxe4 {[%clk 0:01:45]} 19. Nxe4 {[%clk 0:01:04]}  Bd4+ {[%clk 0:01:45]} 20. Kh1 {[%clk 0:01:04]}  d5 {[%clk 0:01:46]} 21. cxd5 {[%clk 0:00:57]}  cxd5 {[%clk 0:01:47]} 22. Ng5 {[%clk 0:00:55]}  Rc8 {[%clk 0:01:48]} 23. Qd1 {[%clk 0:00:52]}  Nd7 {[%clk 0:01:30]} 24. Rb1 {[%clk 0:00:25]}  Nf6 {[%clk 0:01:23]} 25. b4 {[%clk 0:00:20]}  h6 {[%clk 0:01:14]} 26. Nf3 {[%clk 0:00:17]}  Bb6 {[%clk 0:01:15]} 27. Bf5 {[%clk 0:00:16]}  Rc4 {[%clk 0:01:07]} 28. Bxg6 {[%clk 0:00:15]}  fxg6 {[%clk 0:01:08]} 29. Ne5 {[%clk 0:00:14]}  Rd4 {[%clk 0:00:58]} 30. Qc2 {[%clk 0:00:14]}  Ne4 {[%clk 0:00:55]} 31. Be1 {[%clk 0:00:14]}  Qf6 {[%clk 0:00:53]} 32. Qe2 {[%clk 0:00:12]}  g5 {[%clk 0:00:26]} 33. Rf3 {[%clk 0:00:06]}  gxf4 {[%clk 0:00:24]} 34. Ng4 {[%clk 0:00:06]}  Qg6 {[%clk 0:00:22]} 35. Qf1 {[%clk 0:00:05]}  Ng5 {[%clk 0:00:20]} 36. Rxf4 {[%clk 0:00:05]}  Rxf4 {[%clk 0:00:20]} 37. Qxf4 {[%clk 0:00:00]}  Qxb1 {[%clk 0:00:21]} 0-1


[Site "https://www.chess.com"]

[Event "Titled Tuesday Blitz August 22 Late 2023"]
[White "Zhu, Jiner"]
[Black "Vachier-Lagrave, Maxime"]
[WhiteFideId "8608059"]
[BlackFideId "623539"]
[WhiteElo "2648"]
[BlackElo "3131"]
[Result "1/2-1/2"]
[Round "2"]
[TimeControl "180+1"]
[Date "2023.08.22"]
[WhiteClock "0:00:08"]
[BlackClock "0:00:26"]
[Board "4"]

1. e4 {[%clk 0:02:54]}  e5 {[%clk 0:02:58]} 2. Nf3 {[%clk 0:02:54]}  Nc6 {[%clk 0:02:59]} 3. Bb5 {[%clk 0:02:54]}  a6 {[%clk 0:02:59]} 4. Ba4 {[%clk 0:02:17]}  Nf6 {[%clk 0:02:59]} 5. O-O {[%clk 0:02:17]}  Bc5 {[%clk 0:02:54]} 6. c3 {[%clk 0:02:14]}  b5 {[%clk 0:02:53]} 7. Bb3 {[%clk 0:02:12]}  d6 {[%clk 0:02:46]} 8. d4 {[%clk 0:02:10]}  Bb6 {[%clk 0:02:46]} 9. a4 {[%clk 0:02:10]}  Rb8 {[%clk 0:02:46]} 10. a5 {[%clk 0:02:09]}  Ba7 {[%clk 0:02:46]} 11. h3 {[%clk 0:02:06]}  O-O {[%clk 0:02:46]} 12. Be3 {[%clk 0:02:06]}  Ra8 {[%clk 0:02:40]} 13. Nbd2 {[%clk 0:02:04]}  h6 {[%clk 0:02:24]} 14. Re1 {[%clk 0:01:50]}  Re8 {[%clk 0:02:23]} 15. Nf1 {[%clk 0:01:18]}  exd4 {[%clk 0:02:13]} 16. Nxd4 {[%clk 0:01:16]}  Nxd4 {[%clk 0:01:50]} 17. Bxd4 {[%clk 0:01:17]}  Bb7 {[%clk 0:01:49]} 18. Bxa7 {[%clk 0:01:15]}  Rxa7 {[%clk 0:01:50]} 19. f3 {[%clk 0:01:07]}  c5 {[%clk 0:01:49]} 20. Ng3 {[%clk 0:01:06]}  Bc8 {[%clk 0:01:41]} 21. Qd2 {[%clk 0:01:05]}  c4 {[%clk 0:01:34]} 22. Bc2 {[%clk 0:01:05]}  Rae7 {[%clk 0:01:35]} 23. Rad1 {[%clk 0:01:02]}  d5 {[%clk 0:01:28]} 24. exd5 {[%clk 0:00:52]}  Rxe1+ {[%clk 0:01:27]} 25. Rxe1 {[%clk 0:00:53]}  Rxe1+ {[%clk 0:01:25]} 26. Qxe1 {[%clk 0:00:54]}  Qxa5 {[%clk 0:01:13]} 27. Qe7 {[%clk 0:00:44]}  Qb6+ {[%clk 0:01:01]} 28. Kh1 {[%clk 0:00:43]}  g6 {[%clk 0:00:57]} 29. Ne4 {[%clk 0:00:38]}  Nxd5 {[%clk 0:00:44]} 30. Qe8+ {[%clk 0:00:36]}  Kg7 {[%clk 0:00:44]} 31. Qxc8 {[%clk 0:00:31]}  Qe3 {[%clk 0:00:44]} 32. Qb8 {[%clk 0:00:26]}  Qe1+ {[%clk 0:00:31]} 33. Kh2 {[%clk 0:00:26]}  Ne3 {[%clk 0:00:32]} 34. Qe5+ {[%clk 0:00:24]}  Kf8 {[%clk 0:00:28]} 35. Qb8+ {[%clk 0:00:21]}  Kg7 {[%clk 0:00:28]} 36. Qe5+ {[%clk 0:00:21]}  Kf8 {[%clk 0:00:26]} 37. Qb8+ {[%clk 0:00:08]}  Kg7 {[%clk 0:00:26]} 1/2-1/2


[Site "https://www.chess.com"]

[Event "Titled Tuesday Blitz August 22 Late 2023"]
[White "So, Wesley"]
[Black "Mendez Fortes, Eduardo Jesus"]
[WhiteFideId "5202213"]
[BlackFideId "3502376"]
[WhiteElo "3092"]
[BlackElo "2641"]
[Result "1-0"]
[Round "2"]
[TimeControl "180+1"]
[Date "2023.08.22"]
[WhiteClock "0:01:19"]
[BlackClock "0:00:15"]
[Board "5"]

1. b3 {[%clk 0:03:00]}  d5 {[%clk 0:02:59]} 2. Bb2 {[%clk 0:02:59]}  Nf6 {[%clk 0:02:59]} 3. Nf3 {[%clk 0:02:58]}  e6 {[%clk 0:02:59]} 4. e3 {[%clk 0:02:54]}  c5 {[%clk 0:02:59]} 5. d4 {[%clk 0:02:50]}  Nc6 {[%clk 0:02:57]} 6. Bd3 {[%clk 0:02:49]}  b6 {[%clk 0:02:55]} 7. O-O {[%clk 0:02:48]}  Bd6 {[%clk 0:02:54]} 8. Nbd2 {[%clk 0:02:40]}  O-O {[%clk 0:02:53]} 9. Ne5 {[%clk 0:02:40]}  Bb7 {[%clk 0:02:52]} 10. Qf3 {[%clk 0:02:37]}  cxd4 {[%clk 0:02:37]} 11. exd4 {[%clk 0:02:28]}  Nb4 {[%clk 0:02:35]} 12. a3 {[%clk 0:02:03]}  Nxd3 {[%clk 0:02:35]} 13. Qxd3 {[%clk 0:02:03]}  Ne4 {[%clk 0:02:24]} 14. Nxe4 {[%clk 0:01:58]}  dxe4 {[%clk 0:02:24]} 15. Qe2 {[%clk 0:01:59]}  Bxe5 {[%clk 0:02:14]} 16. dxe5 {[%clk 0:02:00]}  Qg5 {[%clk 0:02:10]} 17. Rad1 {[%clk 0:01:52]}  Rfd8 {[%clk 0:02:08]} 18. Rd6 {[%clk 0:01:49]}  Rxd6 {[%clk 0:01:50]} 19. exd6 {[%clk 0:01:50]}  Rd8 {[%clk 0:01:47]} 20. Rd1 {[%clk 0:01:49]}  h5 {[%clk 0:01:40]} 21. h3 {[%clk 0:01:46]}  b5 {[%clk 0:01:34]} 22. Bc1 {[%clk 0:01:29]}  Qc5 {[%clk 0:01:24]} 23. Be3 {[%clk 0:01:26]}  Qe5 {[%clk 0:01:04]} 24. Bxa7 {[%clk 0:01:19]}  Rxd6 {[%clk 0:01:02]} 25. Rxd6 {[%clk 0:01:20]}  Qxd6 {[%clk 0:01:02]} 26. Qxb5 {[%clk 0:01:20]}  Qd1+ {[%clk 0:00:53]} 27. Kh2 {[%clk 0:01:20]}  Qd6+ {[%clk 0:00:50]} 28. Kg1 {[%clk 0:01:20]}  Qd1+ {[%clk 0:00:50]} 29. Kh2 {[%clk 0:01:21]}  Qd6+ {[%clk 0:00:50]} 30. g3 {[%clk 0:01:21]}  h4 {[%clk 0:00:19]} 31. Qxb7 {[%clk 0:01:19]}  hxg3+ {[%clk 0:00:19]} 32. Kg2 {[%clk 0:01:19]}  Qf4 {[%clk 0:00:15]} 33. Qb8+ {[%clk 0:01:19]} 1-0


[Site "https://www.chess.com"]

[Event "Titled Tuesday Blitz August 22 Late 2023"]
[White "Turayev, Shahruh"]
[Black "Firouzja, Alireza"]
[WhiteFideId "14003856"]
[BlackFideId "12573981"]
[WhiteElo "2634"]
[BlackElo "3089"]
[Result "0-1"]
[Round "2"]
[TimeControl "180+1"]
[Date "2023.08.22"]
[WhiteClock "0:00:04"]
[BlackClock "0:00:04"]
[Board "6"]

1. e4 {[%clk 0:03:00]}  c5 {[%clk 0:02:58]} 2. Nc3 {[%clk 0:03:00]}  d6 {[%clk 0:02:58]} 3. f4 {[%clk 0:03:00]}  g6 {[%clk 0:02:58]} 4. Nf3 {[%clk 0:03:01]}  Bg7 {[%clk 0:02:59]} 5. Bc4 {[%clk 0:03:01]}  Nc6 {[%clk 0:02:58]} 6. O-O {[%clk 0:03:02]}  e6 {[%clk 0:02:46]} 7. d3 {[%clk 0:03:01]}  Nge7 {[%clk 0:02:44]} 8. Qe1 {[%clk 0:03:01]}  a6 {[%clk 0:02:30]} 9. a4 {[%clk 0:03:00]}  Nb4 {[%clk 0:02:27]} 10. Bb3 {[%clk 0:02:56]}  O-O {[%clk 0:02:24]} 11. f5 {[%clk 0:02:56]}  exf5 {[%clk 0:02:07]} 12. Qh4 {[%clk 0:02:56]}  d5 {[%clk 0:01:10]} 13. Bg5 {[%clk 0:02:40]}  f6 {[%clk 0:01:08]} 14. exd5 {[%clk 0:02:41]}  Nexd5 {[%clk 0:00:58]} 15. Be3 {[%clk 0:01:40]}  b6 {[%clk 0:00:49]} 16. a5 {[%clk 0:01:24]}  Be6 {[%clk 0:00:47]} 17. Nxd5 {[%clk 0:01:22]}  Bxd5 {[%clk 0:00:45]} 18. axb6 {[%clk 0:01:18]}  Qxb6 {[%clk 0:00:35]} 19. Bxd5+ {[%clk 0:01:07]}  Nxd5 {[%clk 0:00:36]} 20. Qc4 {[%clk 0:01:08]}  Qb7 {[%clk 0:00:30]} 21. Bxc5 {[%clk 0:01:06]}  Rfc8 {[%clk 0:00:30]} 22. d4 {[%clk 0:01:03]}  Kh8 {[%clk 0:00:30]} 23. Rfe1 {[%clk 0:00:57]}  f4 {[%clk 0:00:28]} 24. Re6 {[%clk 0:00:55]}  Ne3 {[%clk 0:00:28]} 25. Qd3 {[%clk 0:00:54]}  Qxb2 {[%clk 0:00:27]} 26. Qa3 {[%clk 0:00:38]}  Qxc2 {[%clk 0:00:26]} 27. Qa2 {[%clk 0:00:38]}  Qf5 {[%clk 0:00:21]} 28. Re7 {[%clk 0:00:38]}  Rab8 {[%clk 0:00:19]} 29. Qf7 {[%clk 0:00:31]}  Rg8 {[%clk 0:00:19]} 30. h3 {[%clk 0:00:32]}  Qc2 {[%clk 0:00:12]} 31. Ne1 {[%clk 0:00:30]}  Qe2 {[%clk 0:00:11]} 32. d5 {[%clk 0:00:21]}  Qf1+ {[%clk 0:00:05]} 33. Kh2 {[%clk 0:00:22]}  Nf5 {[%clk 0:00:05]} 34. Rd7 {[%clk 0:00:09]}  Ng3 {[%clk 0:00:06]} 35. Bg1 {[%clk 0:00:08]}  Ne2 {[%clk 0:00:05]} 36. Bd4 {[%clk 0:00:07]}  Nxd4 {[%clk 0:00:05]} 37. Nc2 {[%clk 0:00:06]}  Nf3+ {[%clk 0:00:03]} 38. gxf3 {[%clk 0:00:06]}  Qf2+ {[%clk 0:00:03]} 39. Kh1 {[%clk 0:00:07]}  Qxc2 {[%clk 0:00:03]} 40. Re1 {[%clk 0:00:07]}  Qf5 {[%clk 0:00:03]} 41. Rb7 {[%clk 0:00:06]}  Qxh3+ {[%clk 0:00:03]} 42. Kg1 {[%clk 0:00:06]}  Qg3+ {[%clk 0:00:04]} 43. Kf1 {[%clk 0:00:07]}  Qxf3+ {[%clk 0:00:05]} 44. Kg1 {[%clk 0:00:08]}  Qg3+ {[%clk 0:00:05]} 45. Kf1 {[%clk 0:00:08]}  Rxb7 {[%clk 0:00:05]} 46. Qxb7 {[%clk 0:00:08]}  f3 {[%clk 0:00:05]} 47. Qb2 {[%clk 0:00:08]}  f5 {[%clk 0:00:05]} 48. Qc2 {[%clk 0:00:08]}  Rd8 {[%clk 0:00:05]} 49. d6 {[%clk 0:00:07]}  Qh3+ {[%clk 0:00:04]} 50. Kg1 {[%clk 0:00:04]}  Bd4+ {[%clk 0:00:04]} 0-1


[Site "https://www.chess.com"]

[Event "Titled Tuesday Blitz August 22 Late 2023"]
[White "OPQRC"]
[Black "Sarana, Alexey"]
[BlackFideId "24133795"]
[WhiteElo "2632"]
[BlackElo "3067"]
[Result "0-1"]
[Round "2"]
[TimeControl "180+1"]
[Date "2023.08.22"]
[WhiteClock "0:01:37"]
[BlackClock "0:02:20"]
[Board "8"]

1. e4 {[%clk 0:02:54]}  c5 {[%clk 0:02:59]} 2. Nf3 {[%clk 0:02:53]}  d6 {[%clk 0:03:00]} 3. d4 {[%clk 0:02:53]}  cxd4 {[%clk 0:03:01]} 4. Nxd4 {[%clk 0:02:54]}  Nf6 {[%clk 0:03:02]} 5. Nc3 {[%clk 0:02:55]}  a6 {[%clk 0:03:02]} 6. Bg5 {[%clk 0:02:55]}  e6 {[%clk 0:03:02]} 7. f4 {[%clk 0:02:55]}  Qb6 {[%clk 0:03:02]} 8. Qd2 {[%clk 0:02:55]}  Qxb2 {[%clk 0:03:02]} 9. Rb1 {[%clk 0:02:55]}  Qa3 {[%clk 0:03:01]} 10. e5 {[%clk 0:02:55]}  Nfd7 {[%clk 0:03:02]} 11. Ne4 {[%clk 0:02:35]}  d5 {[%clk 0:02:45]} 12. Nd6+ {[%clk 0:02:34]}  Bxd6 {[%clk 0:02:44]} 13. exd6 {[%clk 0:02:35]}  Qxd6 {[%clk 0:02:43]} 14. Be2 {[%clk 0:02:31]}  Nc6 {[%clk 0:02:41]} 15. Nxc6 {[%clk 0:02:05]}  bxc6 {[%clk 0:02:42]} 16. O-O {[%clk 0:02:04]}  O-O {[%clk 0:02:38]} 17. Kh1 {[%clk 0:02:03]}  a5 {[%clk 0:02:27]} 18. Rb3 {[%clk 0:01:56]}  f6 {[%clk 0:02:26]} 19. Rg3 {[%clk 0:01:38]}  fxg5 {[%clk 0:02:20]} 20. Rxg5 {[%clk 0:01:37]} 0-1


[Site "https://www.chess.com"]

[Event "Titled Tuesday Blitz August 22 Late 2023"]
[White "Bortnyk, Olexandr"]
[Black "Di Berardino, Diego Rafael"]
[WhiteFideId "14120828"]
[BlackFideId "2105446"]
[WhiteElo "3042"]
[BlackElo "2623"]
[Result "1/2-1/2"]
[Round "2"]
[TimeControl "180+1"]
[Date "2023.08.22"]
[WhiteClock "0:00:07"]
[BlackClock "0:00:06"]
[Board "10"]

1. d4 {[%clk 0:03:00]}  Nf6 {[%clk 0:02:59]} 2. Nc3 {[%clk 0:03:01]}  e6 {[%clk 0:02:57]} 3. Bf4 {[%clk 0:03:01]}  Bb4 {[%clk 0:02:56]} 4. e3 {[%clk 0:03:01]}  O-O {[%clk 0:02:54]} 5. Bd3 {[%clk 0:03:01]}  d5 {[%clk 0:02:53]} 6. Nf3 {[%clk 0:02:58]}  c5 {[%clk 0:02:53]} 7. dxc5 {[%clk 0:02:58]}  Nc6 {[%clk 0:02:51]} 8. Bd6 {[%clk 0:02:56]}  Re8 {[%clk 0:02:47]} 9. O-O {[%clk 0:02:55]}  Nd7 {[%clk 0:02:37]} 10. Na4 {[%clk 0:02:47]}  b6 {[%clk 0:02:06]} 11. Nd4 {[%clk 0:02:37]}  Bb7 {[%clk 0:01:50]} 12. Ba6 {[%clk 0:02:34]}  Qc8 {[%clk 0:01:47]} 13. Nxc6 {[%clk 0:02:32]}  Qxc6 {[%clk 0:01:46]} 14. Bxb7 {[%clk 0:02:33]}  Qxb7 {[%clk 0:01:46]} 15. c6 {[%clk 0:02:33]}  Qxc6 {[%clk 0:01:45]} 16. Bxb4 {[%clk 0:02:30]}  Qxa4 {[%clk 0:01:46]} 17. c3 {[%clk 0:02:14]}  Qxd1 {[%clk 0:01:43]} 18. Rfxd1 {[%clk 0:02:14]}  Nc5 {[%clk 0:01:40]} 19. Rac1 {[%clk 0:02:12]}  Rec8 {[%clk 0:01:26]} 20. f3 {[%clk 0:02:00]}  b5 {[%clk 0:01:24]} 21. b3 {[%clk 0:01:53]}  a5 {[%clk 0:01:21]} 22. Ba3 {[%clk 0:01:54]}  h5 {[%clk 0:01:18]} 23. h4 {[%clk 0:01:44]}  f6 {[%clk 0:01:18]} 24. Kf2 {[%clk 0:01:43]}  Kf7 {[%clk 0:01:19]} 25. Ke2 {[%clk 0:01:42]}  Rc6 {[%clk 0:01:08]} 26. Bb2 {[%clk 0:01:37]}  a4 {[%clk 0:01:05]} 27. c4 {[%clk 0:01:29]}  dxc4 {[%clk 0:00:53]} 28. bxc4 {[%clk 0:01:30]}  b4 {[%clk 0:00:53]} 29. Rb1 {[%clk 0:01:23]}  e5 {[%clk 0:00:48]} 30. Rd5 {[%clk 0:01:20]}  Rac8 {[%clk 0:00:38]} 31. g4 {[%clk 0:00:28]}  hxg4 {[%clk 0:00:29]} 32. fxg4 {[%clk 0:00:29]}  Ne4 {[%clk 0:00:29]} 33. Rd7+ {[%clk 0:00:28]}  Kg8 {[%clk 0:00:26]} 34. g5 {[%clk 0:00:27]}  Rxc4 {[%clk 0:00:20]} 35. gxf6 {[%clk 0:00:27]}  Nxf6 {[%clk 0:00:19]} 36. Rb7 {[%clk 0:00:27]}  Rc2+ {[%clk 0:00:18]} 37. Kf3 {[%clk 0:00:27]}  e4+ {[%clk 0:00:10]} 38. Kg3 {[%clk 0:00:27]}  Rf8 {[%clk 0:00:06]} 39. Rxb4 {[%clk 0:00:18]}  Nh5+ {[%clk 0:00:06]} 40. Kg4 {[%clk 0:00:10]}  Rg2+ {[%clk 0:00:06]} 41. Kh3 {[%clk 0:00:10]}  Rg3+ {[%clk 0:00:06]} 42. Kh2 {[%clk 0:00:11]}  Rf2+ {[%clk 0:00:06]} 43. Kh1 {[%clk 0:00:12]}  Rgg2 {[%clk 0:00:05]} 44. Be5 {[%clk 0:00:11]}  Ng3+ {[%clk 0:00:03]} 45. Bxg3 {[%clk 0:00:11]}  Rxg3 {[%clk 0:00:04]} 46. Rxe4 {[%clk 0:00:05]}  Rgg2 {[%clk 0:00:05]} 47. Rxa4 {[%clk 0:00:03]}  Rh2+ {[%clk 0:00:04]} 48. Kg1 {[%clk 0:00:04]}  Rhg2+ {[%clk 0:00:05]} 49. Kh1 {[%clk 0:00:05]}  Rh2+ {[%clk 0:00:05]} 50. Kg1 {[%clk 0:00:06]}  Rhg2+ {[%clk 0:00:06]} 51. Kh1 {[%clk 0:00:07]} 1/2-1/2


[Site "https://www.chess.com"]

[Event "Titled Tuesday Blitz August 22 Late 2023"]
[White "Omelja, Artem"]
[Black "Bluebaum, Matthias"]
[WhiteFideId "14119846"]
[BlackFideId "24651516"]
[WhiteElo "2621"]
[BlackElo "3030"]
[Result "0-1"]
[Round "2"]
[TimeControl "180+1"]
[Date "2023.08.22"]
[WhiteClock "0:00:00"]
[BlackClock "0:01:22"]
[Board "11"]

1. d4 {[%clk 0:03:00]}  d5 {[%clk 0:03:00]} 2. c4 {[%clk 0:03:00]}  e6 {[%clk 0:03:00]} 3. Nc3 {[%clk 0:03:00]}  Bb4 {[%clk 0:03:00]} 4. cxd5 {[%clk 0:02:49]}  exd5 {[%clk 0:03:01]} 5. Bf4 {[%clk 0:02:47]}  c5 {[%clk 0:03:02]} 6. e3 {[%clk 0:02:46]}  c4 {[%clk 0:03:02]} 7. Ne2 {[%clk 0:02:40]}  Nc6 {[%clk 0:03:02]} 8. a3 {[%clk 0:02:23]}  Ba5 {[%clk 0:03:02]} 9. h3 {[%clk 0:02:17]}  Be6 {[%clk 0:02:59]} 10. Qc2 {[%clk 0:02:09]}  Nf6 {[%clk 0:02:51]} 11. g4 {[%clk 0:01:58]}  h5 {[%clk 0:02:46]} 12. g5 {[%clk 0:01:27]}  Ne4 {[%clk 0:02:44]} 13. h4 {[%clk 0:01:18]}  Bg4 {[%clk 0:02:37]} 14. Bg2 {[%clk 0:01:14]}  Bf5 {[%clk 0:02:30]} 15. Qa4 {[%clk 0:01:01]}  O-O {[%clk 0:02:27]} 16. O-O {[%clk 0:00:53]}  Re8 {[%clk 0:02:26]} 17. Nxe4 {[%clk 0:00:32]}  Bxe4 {[%clk 0:02:27]} 18. Bxe4 {[%clk 0:00:32]}  Rxe4 {[%clk 0:02:28]} 19. Ng3 {[%clk 0:00:32]}  Rxf4 {[%clk 0:02:29]} 20. exf4 {[%clk 0:00:31]}  Nxd4 {[%clk 0:02:29]} 21. Qd1 {[%clk 0:00:30]}  Bb6 {[%clk 0:02:29]} 22. Qxh5 {[%clk 0:00:28]}  Qd7 {[%clk 0:02:25]} 23. f5 {[%clk 0:00:20]}  Nxf5 {[%clk 0:01:45]} 24. Qg4 {[%clk 0:00:20]}  g6 {[%clk 0:01:46]} 25. Rfd1 {[%clk 0:00:16]}  Re8 {[%clk 0:01:35]} 26. Nxf5 {[%clk 0:00:14]}  gxf5 {[%clk 0:01:36]} 27. Qxc4 {[%clk 0:00:08]}  Re1+ {[%clk 0:01:33]} 28. Rxe1 {[%clk 0:00:04]}  dxc4 {[%clk 0:01:33]} 29. Rad1 {[%clk 0:00:05]}  Qc7 {[%clk 0:01:31]} 30. Kg2 {[%clk 0:00:04]}  Qc6+ {[%clk 0:01:31]} 31. Kg3 {[%clk 0:00:04]}  c3 {[%clk 0:01:31]} 32. bxc3 {[%clk 0:00:03]}  Qxc3+ {[%clk 0:01:32]} 33. Kg2 {[%clk 0:00:04]}  Qc6+ {[%clk 0:01:32]} 34. Kg3 {[%clk 0:00:04]}  f4+ {[%clk 0:01:33]} 35. Kxf4 {[%clk 0:00:03]}  Kg7 {[%clk 0:01:27]} 36. Re4 {[%clk 0:00:03]}  Qc3 {[%clk 0:01:18]} 37. h5 {[%clk 0:00:03]}  Bxf2 {[%clk 0:01:18]} 38. h6+ {[%clk 0:00:03]}  Kh7 {[%clk 0:01:18]} 39. Kf5 {[%clk 0:00:03]}  Qf3+ {[%clk 0:01:18]} 40. Rf4 {[%clk 0:00:03]}  Qxd1 {[%clk 0:01:19]} 41. Ke4 {[%clk 0:00:04]}  Qd4+ {[%clk 0:01:19]} 42. Kf3 {[%clk 0:00:04]}  Qe3+ {[%clk 0:01:19]} 43. Kg4 {[%clk 0:00:04]}  Qg3+ {[%clk 0:01:19]} 44. Kf5 {[%clk 0:00:05]}  Be3 {[%clk 0:01:20]} 45. g6+ {[%clk 0:00:01]}  Qxg6+ {[%clk 0:01:19]} 46. Ke5 {[%clk 0:00:02]}  Bxf4+ {[%clk 0:01:20]} 47. Kxf4 {[%clk 0:00:02]}  Qxh6+ {[%clk 0:01:20]} 48. Kf3 {[%clk 0:00:03]}  Qe6 {[%clk 0:01:21]} 49. a4 {[%clk 0:00:03]}  b6 {[%clk 0:01:22]} 50. a5 {[%clk 0:00:00]}  bxa5 {[%clk 0:01:22]} 0-1


[Site "https://www.chess.com"]